Cogmind - Beta 11.1 @@@ ROGUE MODE // 2022.05.17 @ 15:53:12 Player: Sara Result: Destroyed by S-10 Pest with Light Assault Rifle Performance ------------- Evolutions (1) 500 Regions Visited (4) 800 Robots Destroyed (16) 80 Value Destroyed (182) 182 Prototype IDs (1) 20 Alien Tech Used (0) 0 Bonus (59) 59 TOTAL SCORE: 1641 Bonus ------- High Alert Combat Kills 12 Follower Combat Kills 47 Cogmind --------- Core Integrity 0/400 Matter 263/300 Energy 79/100 System Corruption 0% Temperature Cool (12) Movement Core (50) Location -9/Mines Parts ------- > --- POWER (1) -------- (None) > --- PROPULSION (2) --- (None) > --- UTILITY (4) ------ Targeting Computer > --- WEAPON (2) ------- (None) > --- INVENTORY (5) ---- Ion Engine ECM Suite Rocket Launcher Peak State ------------ > --- POWER ------------ (None) > --- PROPULSION ------- (None) > --- UTILITY ---------- Targeting Computer ECM Suite > --- WEAPON ----------- EM Pulse Gun Mini Grenade Launcher > --- INVENTORY -------- Ion Engine Medium Laser Rocket Launcher [Rating: 5] Favorites ----------- Power Heavy Ion Engine Engine Heavy Ion Engine Propulsion None Utility Targeting Computer Device ECM Suite Processor Targeting Computer Weapon Assault Rifle Energy Gun Medium Laser Ballistic Gun Assault Rifle Launcher Grenade Launcher Build | -11 -10 -10 -9 -9 ------- Run | Scr Mat Min Mat Min Slots Evolved 2 | . . . 2 . Power . | . . . . . Propulsion . | . . . . . Utility 2 | . . . 2 . Weapon . | . . . . . Parts Attached 16 | 1 2 . 7 6 Power 1 | . . . 1 . Engine 1 | . . . 1 . Core . | . . . . . Reactor . | . . . . . Propulsion . | . . . . . Treads . | . . . . . Leg . | . . . . . Wheel . | . . . . . Hover . | . . . . . Flight . | . . . . . Utility 2 | . . . 1 1 Device 1 | . . . . 1 Storage . | . . . . . Processor 1 | . . . 1 . Hackware . | . . . . . Protection . | . . . . . Artifact . | . . . . . Weapon 13 | 1 2 . 5 5 Energy Gun 5 | . 2 . 1 2 Energy Cannon . | . . . . . Ballistic Gun 5 | 1 . . 3 1 Ballistic Cannon . | . . . . . Launcher 3 | . . . 1 2 Special Weapon . | . . . . . Impact Weapon . | . . . . . Slashing Weapon . | . . . . . Piercing Weapon . | . . . . . Special Melee Weapon . | . . . . . Unidentified Prototypes 1 | . . . 1 . Parts Lost 5 | . . . 1 4 Power . | . . . . . Propulsion . | . . . . . Utility . | . . . . . Weapon 5 | . . . 1 4 Highest Loss Streak 2 | . . . 1 2 To Critical Strikes . | . . . . . Average Slot Usage (%) 19 | . 17 14 16 22 Device 2 | . . . . 4 Processor 6 | . . . 3 11 Energy Gun 1 | . 3 . . 1 Ballistic Gun 6 | . 14 14 7 2 Launcher 2 | . . . 4 1 Naked Turns 2 | . . . 2 . Heaviest Build 5 | 2 4 2 5 5 Greatest Support 3 | 3 3 3 3 3 Greatest Overweight (x) 1 | . 1 . 1 1 Average Overweight (x) . | . . . . . Largest Inventory Capacity 5 | 5 5 5 5 5 Average Capacity 5 | 5 5 5 5 5 Most Carried 5 | 4 5 4 5 5 Average Carried 4 | 3 3 4 4 4 Final Capacity 5 | 5 5 5 5 5 Final Carried 5 | 4 4 4 5 3 Class Distribution -------------------- 100% | Mutant Dominant Class ---------------- Mutant | -10/Materials Mutant | -10/Mines Mutant | -9/Materials Mutant | -9/Mines Resources | -11 -10 -10 -9 -9 ----------- Run | Scr Mat Min Mat Min Matter Collected 505 | 210 24 . 96 175 Remotely . | . . . . . Salvage Created 175 | . 24 . 112 39 Parts 21 | . 5 . 10 6 Haulers Intercepted 1 | . . . 1 . Recyclers Shooed . | . . . . . Parts Field Recycled . | . . . . . Retrieved Matter . | . . . . . Parts Self-Destructed . | . . . . . Prevented . | . . . . . Kills | -11 -10 -10 -9 -9 ------- Run | Scr Mat Min Mat Min Combat Hostiles Destroyed 14 | . 2 . 5 7 Guns 9 | . 2 . 5 2 AOE 5 | . . . . 5 Classes Destroyed 4 | . 1 . 3 . Builder 1 | . . . 1 . Hauler 1 | . . . 1 . Swarmer 13 | . 2 . 4 7 Sentry 1 | . . . 1 . Best Kill Streak 4 | . 1 . 4 3 Combat Bots Only 4 | . 1 . 4 3 Max Kills in Single Turn 2 | . 1 . 1 2 Gunslinging . | . . . . . Exploded 2 | . . . . 2 Melee . | . . . . . Uniques/NPCs Destroyed . | . . . . . Combat | -11 -10 -10 -9 -9 -------- Run | Scr Mat Min Mat Min Damage Taken 823 | . 77 . 213 533 Core 436 | . 30 . 68 338 Absorbed by Shields . | . . . . . Core Remaining (%) 94 | 100 . 88 . . Volleys Fired 40 | . 3 . 18 19 Largest 2 | . 2 . 2 2 Hottest 70 | . 70 . 60 50 Shots Fired 49 | . 5 . 24 20 Gun 33 | . 5 . 12 16 Cannon . | . . . . . Launcher 16 | . . . 12 4 Special . | . . . . . Kinetic 17 | . 3 . 11 3 Thermal 14 | . 2 . . 12 Explosive 16 | . . . 12 4 Electromagnetic 2 | . . . 1 1 Robot Hit Streak 15 | . 2 . 12 15 Robot Miss Streak 2 | . 2 . . 2 Penetration Max . | . . . . . Secondary Targets . | . . . . . Shots Hit Robots 24 | . 2 . 10 12 Core Hits 24 | . 2 . 13 9 Critical Kills . | . . . . . Critical Parts Destroyed . | . . . . . Critical Strikes 1 | . . . . 1 Burn 1 | . . . . 1 Melee Attacks . | . . . . . Impact . | . . . . . Slashing . | . . . . . Piercing . | . . . . . Sneak Attacks . | . . . . . Combat Hostiles . | . . . . . Follow-up Attacks . | . . . . . Damage Inflicted 726 | . 23 . 250 453 Guns 281 | . 23 . 108 150 Cannons . | . . . . . Explosions 437 | . . . 142 295 Melee . | . . . . . Ramming 8 | . . . . 8 Kinetic 180 | . 23 . 108 49 Thermal 101 | . . . . 101 Explosive 437 | . . . 142 295 Electromagnetic . | . . . . . Impact . | . . . . . Slashing . | . . . . . Piercing . | . . . . . Highest Corruption . | . . . . . Average Corruption . | . . . . . Corruption Purged . | . . . . . Corruption Blocked . | . . . . . Overload Shots . | . . . . . Overflow Damage 4 | . . . 4 . Projectiles . | . . . . . Explosions 4 | . . . 4 . Melee . | . . . . . Knockbacks . | . . . . . Impact . | . . . . . Kinetic . | . . . . . Secondary . | . . . . . Self-Inflicted Damage 78 | . . . 5 73 Shots 3 | . . . 1 2 Rammed 2 | . . . . 2 Targets Rammed 2 | . . . . 2 Kicked . | . . . . . Crushed . | . . . . . Highest Temperature 6 | . . . 2 6 Average Temperature 3 | . . . 2 4 Received Heat Transfer 114 | . 24 . 36 54 Siege Activations . | . . . . . Robots Corrupted . | . . . . . Combat Hostiles . | . . . . . Parts Fried . | . . . . . Impact Corruptions . | . . . . . Robots Melted . | . . . . . Combat Hostiles . | . . . . . Parts Melted . | . . . . . Heat Transferred 370 | . . . . 370 Parts Sabotaged . | . . . . . Parts Stolen . | . . . . . Parts Stripped . | . . . . . Power Chain Reactions . | . . . . . Missiles Intercepted . | . . . . . Alert | -11 -10 -10 -9 -9 ------- Run | Scr Mat Min Mat Min Peak Influence 626 | . 98 37 409 626 Initial 159 | . . 37 14 159 Average 214 | . 47 37 184 337 Maximum Alert Level 2 | . . . 2 2 Low Security (%) 49 | 100 100 100 50 20 Level 1 33 | . . . 48 38 Level 2 16 | . . . . 40 Level 3 . | . . . . . Level 4 . | . . . . . Level 5 . | . . . . . High Security . | . . . . . Max Security . | . . . . . Squads Dispatched 2 | . 2 . . . Investigation 2 | . 2 . . . Extermination . | . . . . . Reinforcement . | . . . . . Assault . | . . . . . Garrison . | . . . . . Intercept . | . . . . . Searches Triggered . | . . . . . Construction Impeded . | . . . . . Haulers Reinforced . | . . . . . Active Scanning Responses . | . . . . . Cargo Convoy Interrupts . | . . . . . Stealth | -11 -10 -10 -9 -9 --------- Run | Scr Mat Min Mat Min Distress Signals 2 | . 1 . 1 . Communications Jammed . | . . . . . Distress Signals . | . . . . . Times Spotted 38 | . 7 . 9 22 Peak Tracking Total 6 | . 4 . 5 6 Tactical Retreats 6 | . 1 . . 5 Traps | -11 -10 -10 -9 -9 ------- Run | Scr Mat Min Mat Min Traps Triggered . | . . . . . Indirectly . | . . . . . Trap Hack Attempts . | . . . . . Triggered . | . . . . . Disarmed . | . . . . . Reprogrammed . | . . . . . Reused . | . . . . . Traps Extracted . | . . . . . Installed . | . . . . . Triggered . | . . . . . Machines | -11 -10 -10 -9 -9 ---------- Run | Scr Mat Min Mat Min Machines Disabled . | . . . . . Max in Single Turn . | . . . . . Machines Sabotaged . | . . . . . Garrisons Compromised . | . . . . . Overloaded Fab Kills . | . . . . . Hacking | -11 -10 -10 -9 -9 --------- Run | Scr Mat Min Mat Min Machines Accessed 5 | . 3 . 1 1 Terminals 3 | . 3 . . . Fabricators . | . . . . . Repair Stations . | . . . . . Recycling Units 1 | . . . 1 . Scanalyzers . | . . . . . Garrison Access . | . . . . . Total Hacks 17 | . 10 . 6 1 Successful 9 | . 4 . 4 1 Failed 8 | . 6 . 2 . Catastrophic 1 | . 1 . . . Database Lockouts . | . . . . . Manual 9 | . 5 . 4 . Terminals 10 | . 10 . . . Fabricators . | . . . . . Repair Stations . | . . . . . Recycling Units 6 | . . . 6 . Scanalyzers . | . . . . . Garrison Access . | . . . . . Terminal Hacks 3 | . 2 . . 1 Open Door 1 | . . . . 1 Terminal Index 1 | . 1 . . . Alert Level 1 | . 1 . . . Fabricator Hacks . | . . . . . Repair Station Hacks . | . . . . . Recycling Unit Hacks 1 | . . . 1 . Retrieve Components 1 | . . . 1 . Scanalyzer . | . . . . . Garrison Access Hacks . | . . . . . Unauthorized Hacks 5 | . 2 . 3 . Terminals 2 | . 2 . . . Operators 1 | . 1 . . . Sabotage 1 | . 1 . . . Fabricators . | . . . . . Repair Stations . | . . . . . Recycling Units 3 | . . . 3 . Monitor 1 | . . . 1 . Reject 1 | . . . 1 . Recyclers 1 | . . . 1 . Scanalyzers . | . . . . . Garrison Access . | . . . . . Data Cores Recovered . | . . . . . Used . | . . . . . Hacking Detections 4 | . 3 . 1 . Full Trace Events 1 | . 1 . . . Feedback Events . | . . . . . Feedback Blocked . | . . . . . Robot Schematics Acquired . | . . . . . Robots Built . | . . . . . Authchips . | . . . . . Time . | . . . . . Total Robot Build Rating . | . . . . . Part Schematics Acquired . | . . . . . Parts Built . | . . . . . Authchips . | . . . . . Time . | . . . . . Total Part Build Rating . | . . . . . Parts Repaired . | . . . . . Time . | . . . . . Parts Recycled . | . . . . . Recycled Matter . | . . . . . Retrieved Matter . | . . . . . Retrieved Components 1 | . . . 1 . Parts Scanalyzed . | . . . . . Part Schematics Acquired . | . . . . . Parts Damaged . | . . . . . Bothacking | -11 -10 -10 -9 -9 ------------ Run | Scr Mat Min Mat Min Used RIF Installer . | . . . . . Robots Hacked . | . . . . . Non-combat . | . . . . . Combat . | . . . . . Robot Hacks Applied . | . . . . . Relay Couplers Released . | . . . . . Fabnet Peak Effective % . | . . . . . Robots Rewired . | . . . . . Allies Hacked . | . . . . . Hacks Repelled . | . . . . . Allies | -11 -10 -10 -9 -9 -------- Run | Scr Mat Min Mat Min Total Allies 3 | . . . . 3 Largest Group 3 | . . . . 3 Highest-Rated Group 40 | . . . . 40 Highest-Rated Ally 16 | . . . . 16 Total Orders . | . . . . . Ally Attacks 19 | . . . . 19 Total Damage 237 | . . . . 237 Kills 4 | . . . . 4 Allies Corrupted . | . . . . . Allies Melted . | . . . . . Intel | -11 -10 -10 -9 -9 ------- Run | Scr Mat Min Mat Min Robot Analysis Total . | . . . . . Derelict Logs Recovered . | . . . . . Drone Launches . | . . . . . Drone Recoveries . | . . . . . Exploration | -11 -10 -10 -9 -9 ------------- Run | Scr Mat Min Mat Min Turns Passed 712 | 29 111 17 264 291 Spaces Moved 943 | 48 132 33 292 438 Core 943 | 48 132 33 292 438 Treads . | . . . . . Legs . | . . . . . Wheels . | . . . . . Hover . | . . . . . Flight . | . . . . . Fastest Speed 50 | 50 50 50 50 50 Average Speed 50 | 50 50 50 50 50 Slowest Speed 100 | 50 100 50 100 100 Overloaded Moves . | . . . . . Propulsion Burnouts . | . . . . . Robots Hopped . | . . . . . Cave-ins Triggered . | . . . . . Exploration Rate (%) 31 | 3 32 16 22 82 Regions Visited 4 Branch Regions 2 Pre-discovered Areas . | . . . . . Known Exits Taken . | . . . . . Unknown Exits Taken 4 | 1 1 1 1 . Scrap Searched 2 | . . . . 2 Spaces Dug . | . . . . . Terrain Destroyed 130 | . . . 86 44 Melee . | . . . . . Projectile . | . . . . . AOE 130 | . . . 86 44 Terrain Rammed . | . . . . . Walls Destroyed . | . . . . . Machines Disabled . | . . . . . Actions | -11 -10 -10 -9 -9 --------- Run | Scr Mat Min Mat Min Total 1134 | 52 171 32 386 493 Wait 116 | . 32 . 64 20 Move 939 | 47 131 32 291 438 Hop . | . . . . . Pick Up 9 | 4 1 . 1 3 Fast Attach 4 | 1 . . 2 1 Attach 11 | . 1 . 5 5 Detach 8 | . 1 . 5 2 Swap 1 | . 1 . . . Drop 4 | . 1 . . 3 Fire 40 | . 3 . 18 19 Melee . | . . . . . Ram 2 | . . . . 2 Kick . | . . . . . Crush . | . . . . . Escape Stasis . | . . . . . Rewire . | . . . . . Trap . | . . . . . Miscellaneous . | . . . . . Route ------- -11/Scrapyard -10/Materials -10/Mines -9/Materials -9/Mines (discovered 2 exits: [*Mat x2]) History --------- Turn | Location | Event 15 | -11/Scrapyard | Discovered new exit (range 15) 30 | -11/Scrapyard | Entered Materials 136 | -10/Materials | Discovered new exit (range 11) 141 | -10/Materials | Entered Mines 147 | -10/Mines | Met a Derelict bent on vengeance 151 | -10/Mines | Discovered new exit (range 14) 158 | -10/Mines | Entered Materials 158 | -9/Materials | Evolved 2 slots: Utility x2 331 | -9/Materials | Build established: Mutant 413 | -9/Materials | Discovered new exit (range 15) 422 | -9/Materials | Entered Mines 474 | -9/Mines | Assisted by bots powering up and referring to "LRC-V3" 523 | -9/Mines | Discovered new exit (range 8) 532 | -9/Mines | Met a Derelict who couldn't figure out how to use a Trap Extractor 583 | -9/Mines | Discovered new exit (range 6) 663 | -9/Mines | Core integrity fell below 50% 691 | -9/Mines | Core integrity fell below 20% 713 | -9/Mines | Destroyed by S-10 Pest with Light Assault Rifle Last Messages --------------- 00608_ Mercenary 2a destroyed. 00611_ Acquired 39 matter. 00611_ S-10 Pest destroyed. 00618_ Acquired 12 matter. 00621_ Trooper 2a destroyed. 00626_ Slammed into S-10 Pest. 00627_ Acquired 11 matter. 00627_ Slammed into S-10 Pest. 00637_ EM Pulse Gun destroyed. 00638_ S-10 Pest destroyed. 00645_ Acquired 10 matter. 00647_ Mni. Grenade Launcher destroyed. 00655_ Acquired 5 matter. 00666_ The unstable cave ceiling collapses. 00666_ S-10 Pest destroyed. 00670_ K-01 Serf collects debris. 00679_ U-05 Engineer lays Concrete. 00692_ S-10 Pest suffers critical hit (Burn). 00698_ S-10 Pest destroyed. 00713_ Med. Laser destroyed. Map ----- +----------------------------------------------------+ | ?????# #??## ######### #??? ????????# | | ?????# #???# ##???????? #?? ???????? | | ?????# #???# #????????? ?? ?????? | | ?????# #???# #????????? ? ??? | | ?????# ##### #?????????#### ?? | | ?????# #?????????????? ? | | ?????# #######??????###????? ? | | ?????# ###????????## ##???? ??#### | | ?????# #????????# ##??? * ??????## | | ?????### ####?????# #???#% ?#??????## | | ???????# #????## #?### # ?????????## | | ???????# ## ###### #??# # ???????????? | | ???????# ## ## = ##??# # #?##?????????? | | ???????# ## ## ## #????# ## #?????????? | | ??????## ## ## ## ##??### % #??????????? | | ?????## ### ###### #??????????? | | ????##[ ###?##### #??????????? | | ????#! ! #???????# ### #???????# | | ????# ! ##?????### #?# #??????????? | | ????## ##??????# #?# #??????????? | | ?????## ###???????# ###?# #### ##??????????? | | ??????####?????????#%#???# #??# #??????????## | | ???????????????????# #???## ??# #??????????# | | ???????????????????#g#??####### #????????### | | ???????????????????#g#??# #????????# | | ???????????????????#@#??# ### # ########## ## | | ???????????????????#s#??#???# # #? | | ???????????????????s[#### #?# # ########## ## | | ???????????????????### # # ##??????# | | ?????????????????????#""" #####??# | | ?????????????????????#""" # #### | | ?????????????????????#""" !< | | ?????????????????????# # [%% =[ | | ?????????????????????#""" # * | | ?????????????????????#""" # # # ### =! | | ?????????????????????#""" # # ######?####% | | ?????????????????????? ?# ####?????????#= | | ?????????????????????#""" ?# #????????????#* | | ?????????????????????#""" ??# ?????????????# | | ???????????????????????"" ??##?????????????#* | | ??????????????????????? ??????????????????## | | ????????????????????????????????????????????# | | ????????????????????????????????????????????# | | ????????????????????????????????????????????# | | ????????????????????????????????????????????# | | ????????????????????????????????????????????# | | ????????????????????????????????????????????# | | ????????????????????????????????????????????# | | ????????????????????????????????????????????? | | ????????????????????????????????????????????? | +----------------------------------------------------+ Best States ------------- Heat Dissipation 28 Energy Generation 5 Energy Capacity 100 Matter Stores 300 Matter Capacity 300 Sight Range 16 Terrain Scan Density 10 ECM Strength 1 Evasion (%) 50 Targeting Accuracy 5 Item Schematics ----------------- None Robot Schematics ------------------ None Fabricated ------------ Nothing Alien Tech Used ----------------- None Achievements -------------- None Challenges ------------ None Game ------ Seed VariableSuspensionCannon Manual? 0 Play Time 00:17:08 Cumulative 105.4 hours Start 2022.05.17 @ 15:35:22 End 2022.05.17 @ 15:53:12 Sessions 1 Manual Loads 0 Difficulty Rogue Special Mode None Game No. 147 Rogue 147 Adventurer 0 Explorer 0 Win Type - Total 1 Types 1/0/0/0/0/0/0/0/0 Lore% 58 Gallery% 55 Achievement% 48 Wizard Run 0 Options --------- ASCII 0 Keyboard 0 Movement Numpad Keybinds 0 Fullscreen 1 Font 18/X11Bold Map View 76x50 Tactical HUD 1 Map Filters NONE Filters NONE Steam 1 RUN: 2fc164ce-8d8c-4779-8482-57b07743b7be